Cogmind - Beta 14 @@@ ROGUE MODE // 2025.05.03 @ 15:56:06 Player: BVrutally Odd Result: Destroyed by G-47 Trooper via exploding Nuclear Reactor Performance ------------- Evolutions (0) 0 Regions Visited (1) 200 Robots Destroyed (11) 55 Value Destroyed (168) 168 Prototype IDs (0) 0 Alien Tech Used (0) 0 Bonus (0) 0 TOTAL SCORE: 423 Bonus ------- None Cogmind --------- Core Integrity 0/250 Matter 300/300 Energy 250/250 System Corruption 0% Temperature Cool (0) Movement Treading (320) Ox2 Location -10/Materials Parts ------- > --- POWER (1) -------- Ion Engine > --- PROPULSION (2) --- Light Treads > --- UTILITY (2) ------ High-capacity Storage Unit Transport Network Coupler > --- WEAPON (2) ------- Light Assault Rifle > --- INVENTORY (20) --- Aluminum Leg Aluminum Leg Compact Wheel Compact Wheel Heat Sink Small Storage Unit Sensor Array Grenade Launcher Peak State ------------ > --- POWER ------------ Light Ion Engine > --- PROPULSION ------- Light Treads Light Treads > --- UTILITY ---------- Small Storage Unit Seismic Detector > --- WEAPON ----------- Medium Laser Light Assault Rifle > --- INVENTORY -------- Ion Engine Aluminum Leg Aluminum Leg Compact Wheel Compact Wheel Light Assault Rifle [Rating: 7] Favorites ----------- Power Light Ion Engine Engine Light Ion Engine Propulsion Light Treads Treads Light Treads Utility Small Storage Unit Device Seismic Detector Storage Small Storage Unit Processor Transport Network Coupler Weapon Light Assault Rifle Energy Gun Medium Laser Ballistic Gun Light Assault Rifle Build | -11 -10 ------- Run | Yrd Mat Slots Evolved . | . . Power . | . . Propulsion . | . . Utility . | . . Weapon . | . . Parts Attached 12 | 7 5 Power 3 | 1 2 Engine 3 | 1 2 Core . | . . Reactor . | . . Propulsion 2 | 2 . Treads 2 | 2 . Leg . | . . Wheel . | . . Hover . | . . Flight . | . . Utility 4 | 2 2 Device 1 | 1 . Storage 2 | 1 1 Processor 1 | . 1 Hackware . | . . Protection . | . . Artifact . | . . Weapon 3 | 2 1 Energy Gun 1 | 1 . Energy Cannon . | . . Ballistic Gun 2 | 1 1 Ballistic Cannon . | . . Launcher . | . . Special Weapon . | . . Impact Weapon . | . . Slashing Weapon . | . . Piercing Weapon . | . . Special Melee Weapon . | . . Unidentified Prototypes . | . . Parts Lost 4 | . 4 Power 1 | . 1 Propulsion 1 | . 1 Utility . | . . Weapon 2 | . 2 Highest Loss Streak 3 | . 3 To Critical Strikes . | . . Average Slot Usage (%) 94 | . 94 Engine 13 | . 13 Treads 28 | . 28 Device 6 | . 6 Storage 14 | . 14 Processor 7 | . 7 Energy Gun 8 | . 8 Ballistic Gun 14 | . 14 Peak Build Rating 7 | 7 7 Average Rating 6 | 5 6 On Entrance 3 | . 7 Naked Turns . | . . Heaviest Build 46 | 12 46 Greatest Support 40 | 40 40 Greatest Overweight (x) 1 | . 1 Average Overweight (x) . | . . Largest Inventory Capacity 20 | 8 20 Average Capacity 9 | 7 10 Most Carried 8 | 6 8 Average Carried 6 | 4 7 Final Capacity 20 | 8 20 Final Carried 8 | 6 8 Class Distribution -------------------- 100% | Mutant Dominant Class ---------------- Mutant | -10/Materials Resources | -11 -10 ----------- Run | Yrd Mat Matter Collected 363 | 291 72 Remotely . | . . Salvage Created 364 | 149 215 Parts 21 | 8 13 Haulers Intercepted 1 | . 1 Recyclers Shooed 1 | . 1 Parts Field Recycled . | . . Retrieved Matter . | . . Parts Self-Destructed . | . . Prevented . | . . Kills | -11 -10 ------- Run | Yrd Mat Combat Hostiles Destroyed 6 | . 6 Guns 6 | . 6 Classes Destroyed 6 | 3 3 Worker 1 | 1 . Tunneler 2 | 2 . Hauler 1 | . 1 Recycler 1 | 1 . Swarmer 3 | . 3 Grunt 3 | . 3 Best Kill Streak 4 | 4 3 Combat Bots Only 3 | . 3 Max Kills in Single Turn 1 | 1 1 Gunslinging . | . . Exploded . | . . Melee . | . . Uniques/NPCs Destroyed . | . . Combat | -11 -10 -------- Run | Yrd Mat Hostile Shots Fired 77 | . 77 Missed 11 | . 11 Damage Taken 858 | . 858 Core 281 | . 281 Absorbed by Shields . | . . Core Remaining (%) 100 | 100 . Volleys Fired 65 | 21 44 Largest 2 | 2 2 Hottest 70 | 70 70 Shots Fired 120 | 42 78 Gun 120 | 42 78 Cannon . | . . Launcher . | . . Special . | . . Kinetic 71 | 21 50 Thermal 49 | 21 28 Explosive . | . . Electromagnetic . | . . Robot Hit Streak 7 | 4 7 Robot Miss Streak 4 | 4 3 Penetration Max . | . . Secondary Targets 1 | . 1 Max Gunslinging Chain 1 | . 1 Shots Hit Robots 75 | 23 52 Core Hits 24 | 6 18 Critical Kills . | . . Critical Parts Destroyed . | . . Critical Strikes 5 | 2 3 Burn 5 | 2 3 Melee Attacks . | . . Impact . | . . Slashing . | . . Piercing . | . . Sneak Attacks . | . . Combat Hostiles . | . . Follow-up Attacks . | . . Damage Inflicted 758 | 241 517 Guns 744 | 241 503 Cannons . | . . Explosions . | . . Melee . | . . Ramming 14 | . 14 Kinetic 358 | 94 264 Thermal 386 | 147 239 Explosive . | . . Electromagnetic . | . . Impact . | . . Slashing . | . . Piercing . | . . Highest Corruption . | . . Average Corruption . | . . Corruption Purged . | . . Corruption Blocked . | . . Overload Shots . | . . Overflow Damage . | . . Projectiles . | . . Explosions . | . . Melee . | . . Knockbacks . | . . Impact . | . . Kinetic . | . . Secondary . | . . Self-Inflicted Damage . | . . Shots . | . . Rammed 3 | . 3 Targets Rammed 3 | . 3 Kicked . | . . Crushed . | . . Highest Temperature 253 | 150 253 Average Temperature 74 | 54 86 Received Heat Transfer 303 | . 303 Siege Activations . | . . Robots Corrupted . | . . Combat Hostiles . | . . Parts Fried . | . . Impact Corruptions . | . . Robots Melted . | . . Combat Hostiles . | . . Parts Melted 3 | 1 2 Heat Transferred 1517 | 592 925 Parts Sabotaged . | . . Parts Stolen . | . . Parts Stripped . | . . Power Chain Reactions . | . . Alert | -11 -10 ------- Run | Yrd Mat Peak Influence 169 | 20 169 Initial 13 | . 13 Average 60 | 4 81 Maximum Alert Level . | . . Low Security (%) 100 | 100 100 Level 1 . | . . Level 2 . | . . Level 3 . | . . Level 4 . | . . Level 5 . | . . High Security . | . . Max Security . | . . Squads Dispatched . | . . Investigation . | . . Extermination . | . . Reinforcement . | . . Assault . | . . Garrison . | . . Intercept . | . . Searches Triggered . | . . Construction Impeded . | . . Haulers Reinforced . | . . Active Scanning Responses . | . . Cargo Convoy Interrupts . | . . Stealth | -11 -10 --------- Run | Yrd Mat Distress Signals 1 | . 1 Communications Jammed . | . . Distress Signals . | . . Times Spotted 12 | . 12 Peak Tracking Total 4 | . 4 Tactical Retreats . | . . Traps | -11 -10 ------- Run | Yrd Mat Traps Triggered . | . . Indirectly . | . . Trap Hack Attempts . | . . Triggered . | . . Disarmed . | . . Reprogrammed . | . . Reused . | . . Traps Extracted . | . . Installed . | . . Triggered . | . . Machines | -11 -10 ---------- Run | Yrd Mat Machines Disabled . | . . Max in Single Turn . | . . Machines Repaired . | . . Machines Dismantled . | . . Machines Sabotaged . | . . Overloaded Fab Kills . | . . Hacking | -11 -10 --------- Run | Yrd Mat Machines Accessed 3 | . 3 Terminals 3 | . 3 Fabricators . | . . Repair Stations . | . . Recycling Units . | . . Scanalyzers . | . . Garrison Access . | . . Total Hacks 9 | . 9 Successful 4 | . 4 Failed 5 | . 5 Catastrophic . | . . Database Lockouts . | . . Manual 7 | . 7 Terminals 9 | . 9 Fabricators . | . . Repair Stations . | . . Recycling Units . | . . Scanalyzers . | . . Garrison Access . | . . Terminal Hacks 1 | . 1 Locate Traps 1 | . 1 Fabricator Hacks . | . . Repair Station Hacks . | . . Recycling Unit Hacks . | . . Scanalyzer . | . . Garrison Access Hacks . | . . Unauthorized Hacks 3 | . 3 Terminals 3 | . 3 Botnet 2 | . 2 Operators 1 | . 1 Fabricators . | . . Repair Stations . | . . Recycling Units . | . . Scanalyzers . | . . Garrison Access . | . . Data Cores Recovered . | . . Used . | . . Hacking Detections 3 | . 3 Full Trace Events . | . . Feedback Events . | . . Feedback Blocked . | . . Robot Schematics Acquired . | . . Robots Built . | . . Authchips . | . . Time . | . . Total Robot Build Rating . | . . Part Schematics Acquired . | . . Parts Built . | . . Authchips . | . . Time . | . . Total Part Build Rating . | . . Parts Repaired . | . . Time . | . . Parts Recycled . | . . Recycled Matter . | . . Retrieved Matter . | . . Retrieved Components . | . . Parts Scanalyzed . | . . Part Schematics Acquired . | . . Parts Damaged . | . . Bothacking | -11 -10 ------------ Run | Yrd Mat Used RIF Installer . | . . Robots Hacked . | . . Non-combat . | . . Combat . | . . Robot Hacks Applied . | . . Relay Couplers Released . | . . Fabnet Peak Effective % . | . . Robots Rewired . | . . Allies Hacked . | . . Hacks Repelled . | . . Allies | -11 -10 -------- Run | Yrd Mat Total Allies . | . . Largest Group . | . . Highest-Rated Group . | . . Highest-Rated Ally . | . . Total Orders . | . . Ally Attacks . | . . Total Damage . | . . Kills . | . . Allies Corrupted . | . . Allies Melted . | . . Intel | -11 -10 ------- Run | Yrd Mat Robot Analysis Total . | . . Derelict Logs Recovered . | . . Drone Launches . | . . Drone Recoveries . | . . Exploration | -11 -10 ------------- Run | Yrd Mat Turns Passed 642 | 173 469 Spaces Moved 246 | 67 179 Core 9 | 9 . Treads 237 | 58 179 Legs . | . . Wheels . | . . Hover . | . . Flight . | . . Fastest Speed 50 | 50 160 Average Speed 168 | 145 177 Slowest Speed 240 | 160 240 Overloaded Moves . | . . Propulsion Burnouts . | . . Robots Hopped . | . . Cave-ins Triggered . | . . Exploration Rate (%) 21 | 5 38 Regions Visited 1 Branch Regions . Pre-discovered Areas . | . . Known Exits Taken . | . . Unknown Exits Taken 1 | 1 . Scrap Searched . | . . Spaces Dug . | . . Terrain Destroyed . | . . Melee . | . . Projectile . | . . AOE . | . . Terrain Rammed . | . . Walls Destroyed . | . . Machines Disabled . | . . Actions | -11 -10 --------- Run | Yrd Mat Total 357 | 101 256 Wait 22 | 1 21 Move 245 | 66 179 Hop . | . . Pick Up 9 | 6 3 Fast Attach 7 | 7 . Attach 2 | . 2 Detach . | . . Swap 3 | . 3 Drop 1 | . 1 Fire 65 | 21 44 Melee . | . . Ram . | . . Kick . | . . Crush 3 | . 3 Escape Stasis . | . . Rewire . | . . Trap . | . . Miscellaneous . | . . Route ------- -11/Scrapyard -10/Materials (discovered 1 exit: [*Min]) History --------- Turn | Location | Event 3 | -11/Scrapyard | Discovered new exit (range 16) 174 | -11/Scrapyard | Entered Materials 308 | -10/Materials | Build established: Mutant 351 | -10/Materials | Discovered new exit (range 14) 527 | -10/Materials | Lost 3 parts (1p2w) 630 | -10/Materials | Core integrity fell below 50% 643 | -10/Materials | Destroyed by G-47 Trooper via exploding Nuclear Reactor Last Messages --------------- 00500_ Acquired 41 matter. 00505_ Acquired Heat Sink. 00506_ Acquired 20 matter. 00511_ R-06 Scavenger collects Aluminum Leg. 00620_ K-01 Serf sends out distress signal. 00626_ Slammed into G-47 Trooper. 00628_ K-01 Serf cleans the Nuclear Reactor. 00632_ Slammed into G-34 Mercenary. 00633_ K-01 Serf cleans the Nuclear Reactor. 00635_ Slammed into G-34 Mercenary. 00638_ K-01 Serf cleans the Nuclear Reactor. 00639_ Connecting with Terminal... >>Traps(Locate) Found 3 traps in 1 array: 3x Shock Trap Map updated. 00640_ M-13 Machinist repairs G-34 Mercenary. 00641_ K-01 Serf cleans the Nuclear Reactor. 00642_ Lgt. Treads destroyed. 00643_ Nuclear Reactor explodes. Map ----- +----------------------------------------------------+ | ??????# ?????????????????????????????????? | | ?????## ?????????????????????????????????? | | #?????# ???????????????????????????????????? | | ####### ????????????????????????????????????? | | ###########???????????????????????????? | | ^ # #???????????????????????????? | | """ # #???????????????????????????? | | """ # #???????????????????????????? | | """ # #???????????????????????????? | | ! ! "T" / """ !=#???????????????????????????? | | ! # """ = #???????????????????????????? | | ! = # """ #???????????????????????????? | | ####### ## #???????????????????????????? | | ## ####+###+###???????????????????????????? | | """ ## #??# #?# #?###########?????????????????? | | """""## #??# #?# #?# #?????????????????? | | """""## ##?# #?# #?# #?????????????????? | | """""# ### ### ### #?????????????????? | | """ # # """ """ #?????????????????? | | # % + """ """ #?????????????????? | | ###### # """ """ #?????????????????? | | #??# ######### # #?????????????????? | | #??#######???????# # #?????????????????? | | #????????????#####+###########?????????????????? | | !#????????????# k tggT #????????????????????? | | #????????????# """k @m #????????????????????? | | ##????????????# """ #????????????????????? | | #?????????????# """ #????????????????????? | | #?????????????# #????????????????????? | | #???######????#######+####u#????????????????????? | | # ? #??????????? ??? #??????a?????????????? | | # """ [#??????????? ??? ????????????????????? | | + """ #??????????? #??? ???????????????????? | | # """ #??????????^^^#??? ???????????????????? | | # #??????????? #??? ??????????????????? | | # """ #???????????? ???? ??????????????????? | | # """ #???????????? ????###?????????????????? | | # """ #????????????? ????????????????????????? | | # #??????????????????????????????????????? | | ####+#####??????????????????????????????????????? | | ## #????????????????????????????????????????? | | #????????????????????????????????????????? | | #????????????????????????????????????????? | | #????????????????????????????????????????? | | ### #????????????????????????????????????????? | | ??## ##????????????????????????????????????????? | | ???# #?????????????????????????????????????????? | | ???# #?????????????????????????????????????????? | | #### #?????????????????????????????????????????? | | # #?????????????????????????????????????????? | +----------------------------------------------------+ Best States ------------- Heat Dissipation 25 Energy Generation 10 Energy Capacity 250 Matter Stores 300 Matter Capacity 300 Sight Range 16 Terrain Scan Density 10 Evasion (%) 40 Recoil Reduction 2 Item Schematics ----------------- None Robot Schematics ------------------ None Fabricated ------------ Nothing Alien Tech Used ----------------- None Achievements -------------- None Challenges ------------ None Game ------ Seed TargetBoltAutopenetrator Manual? 0 Play Time 00:06:47 Cumulative 245.6 hours Start 2025.05.03 @ 15:52:14 End 2025.05.03 @ 15:56:06 Sessions 1 Manual Loads 0 Difficulty Rogue Special Mode None Game No. 118 Rogue 59 Adventurer 16 Explorer 43 Win Type - Total 33 Types 20/5/2/1/0/1/2/1/1 Lore% 86 Gallery% 88 Achievement% 81 Wizard Run 0 Options --------- Layout 2 ASCII 0 Keyboard 0 Movement Mouse Keybinds 0 Fullscreen 1 Font 32/Tamsyn Map View 50x44 Zoom Use 0% Tactical HUD 1 Map Filters NONE Filters NONE Steam 1 RUN: 485e5fec-22ed-4f19-8f5a-25605725b81e